fUST/lending_fUST_20260226
["ID","MTS","AMOUNT","RATE_DAILY","PERIOD"]
[406693554,1772089751286,-500.0,0.00013273,2]
[406693555,1772089751306,-500.0,0.00013273,2]
[406693556,1772089751327,-500.0,0.00013273,2]
[406693557,1772089751348,-500.0,0.00013273,2]
[406693558,1772089751368,-186.66329369,0.00013273,2]
[406693559,1772089751389,-500.0,0.00013273,2]
[406693560,1772089751408,-500.0,0.00013273,2]
[406693561,1772089751429,-500.0,0.00013273,2]
[406693562,1772089751449,-500.0,0.00013273,2]
[406693563,1772089751469,-503.71445197,0.00013273,2]
[406693564,1772089751494,-500.0,0.00013273,2]
[406693565,1772089751537,-500.0,0.00013273,2]
[406693566,1772089751580,-406.91624756,0.00013273,2]
[406693567,1772089751623,-500.0,0.00013273,2]
[406693568,1772089751661,-420.0,0.00013348,2]
[406693569,1772089751685,-300.0,0.00013537,2]
[406693570,1772089751708,-300.0,0.00013537,2]
[406693571,1772089751732,-300.0,0.00013537,2]
[406693572,1772089751755,-300.0,0.00013537,2]
[406693573,1772089751778,-300.0,0.00013537,2]
[406693574,1772089751801,-300.0,0.00013537,2]
[406693575,1772089751827,-300.0,0.00013537,2]
[406693576,1772089751850,-300.0,0.00013537,2]
[406693577,1772089751873,-300.0,0.00013537,2]
[406693578,1772089751906,-300.0,0.00013537,2]
[406693579,1772089751930,-300.0,0.00013537,2]
[406693580,1772089751952,-300.0,0.00013537,2]
[406693581,1772089751975,-300.0,0.00013537,2]
[406693582,1772089751998,-300.0,0.00013537,2]
[406693583,1772089752024,-300.0,0.00013537,2]
[406693584,1772089752047,-300.0,0.00013673,2]
[406693585,1772089752070,-500.0,0.00013673,2]
[406693586,1772089752094,-298.09578842,0.00013698,2]
[406693587,1772089752119,-550.22113805,0.00013698,2]
[406693588,1772089752142,-458.102991,0.00013699,2]
[406693589,1772089752165,-200.0,0.00013699,2]
[406693590,1772089752188,-500.0,0.00013699,2]
[406693591,1772089752212,-500.0,0.00013699,2]
[406693592,1772089752235,-500.0,0.00013699,2]
[406693593,1772089752261,-500.0,0.00013699,2]
[406693594,1772089752283,-500.0,0.00013699,2]
[406693595,1772089752306,-500.0,0.00013699,2]
[406693596,1772089752329,-303.54477999,0.00013699,2]
[406693597,1772089752354,-500.0,0.00013699,2]
[406693598,1772089752380,-377.83978562,0.00013699,2]
[406693599,1772089752404,-500.0,0.00013699,2]
[406693600,1772089752426,-500.0,0.00013699,2]
[406693601,1772089752447,-500.0,0.00013699,2]
[406693602,1772089752465,-159.44747247,0.00013699,2]
[406693603,1772089752484,-299.75902457,0.00013699,2]
[406693604,1772089752504,-500.0,0.00013699,2]
[406693605,1772089752522,-500.0,0.00013699,2]
[406693606,1772089752541,-500.0,0.00013699,2]
[406693607,1772089752559,-273.04875006,0.00013699,2]
[406693608,1772089752579,-500.0,0.00013699,2]
[406693609,1772089752599,-500.0,0.00013699,2]
[406693610,1772089752618,-502.26698831,0.00013699,2]
[406693611,1772089752638,-560.84012542,0.00013699,2]
[406693612,1772089752659,-500.0,0.00013699,2]
[406693613,1772089752678,-500.0,0.00013699,2]
[406693614,1772089752698,-576.30215063,0.00013699,2]
[406693615,1772089752718,-500.0,0.00013699,2]
[406693616,1772089752736,-501.18396863,0.00013699,2]
[406693617,1772089752756,-500.0,0.00013699,2]
[406693618,1772089752775,-500.0,0.00013699,2]
[406693619,1772089752793,-507.69988857,0.00013699,2]
[406693620,1772089752817,-501.87378825,0.00013699,2]
[406693621,1772089752838,-500.0,0.00013699,2]
[406693622,1772089752859,-500.0,0.00013699,2]
[406693623,1772089752880,-500.0,0.00013699,2]
[406693624,1772089752903,-501.95318368,0.00013699,2]
[406693625,1772089752922,-500.0,0.00013699,2]
[406693626,1772089752945,-467.60113169,0.00013807,2]
[406693627,1772089754317,-500.0,0.00013273,2]
[406693628,1772089754363,-500.0,0.00013273,2]
[406693629,1772089754412,-500.0,0.00013699,2]
[406693630,1772089754463,-132.39886831,0.00013807,2]
[406693631,1772089754512,-577.8576522,0.00013821,2]
[406693632,1772089754563,-504.13667758,0.00013821,2]
[406693633,1772089754611,-1000.0,0.00013821,2]
[406693634,1772089754659,-1000.0,0.00013821,2]
[406693635,1772089754706,-1000.0,0.00013821,2]
[406693636,1772089754752,-1000.0,0.00013821,2]
[406693637,1772089754806,-367.41051332,0.00013821,2]
[406693638,1772089754860,-1000.0,0.00013821,2]
[406693639,1772089754911,-1000.0,0.00013821,2]
[406693640,1772089754963,-1000.0,0.00013821,2]
[406693641,1772089755010,-990.8618976,0.00013821,2]
[406693642,1772089755059,-573.12309028,0.00013821,2]
[406693643,1772089755109,-1000.0,0.00013821,2]
[406693644,1772089755159,-1000.0,0.00013821,2]
[406693645,1772089755207,-1000.0,0.00013821,2]
[406693646,1772089755256,-1112.03122719,0.00013821,2]
[406693647,1772089755308,-217.99724653,0.00014162,2]
[406693648,1772089755358,-603.57925462,0.00014221,2]
[406693649,1772089755406,-151.0,0.00014238,2]
[406693650,1772089755453,-151.0,0.00014238,2]
[406693651,1772089755501,-151.0,0.00014238,2]
[406693652,1772089755548,-507.70030796,0.00014247,2]
[406693653,1772089755595,-1000.0,0.00014247,2]
[406693654,1772089755641,-589.81869181,0.00014247,2]
[406693655,1772089755687,-1000.0,0.00014247,2]
[406693656,1772089755741,-1000.0,0.00014247,2]
[406693657,1772089755794,-1000.0,0.00014247,2]
[406693658,1772089755843,-1000.0,0.00014247,2]
[406693659,1772089755893,-1000.0,0.00014247,2]
[406693660,1772089755941,-500.0,0.00014247,2]
[406693661,1772089755987,-1004.19545126,0.00014247,2]
[406693662,1772089756032,-665.27577457,0.00014247,2]
[406693663,1772089756078,-1000.0,0.00014247,2]
[406693664,1772089756123,-537.89070707,0.00014247,2]
[406693665,1772089756170,-502.64626154,0.00014247,2]
[406693666,1772089756217,-1000.0,0.00014247,2]
[406693667,1772089756268,-1000.0,0.00014247,2]
[406693668,1772089756316,-1000.0,0.00014247,2]
[406693669,1772089756366,-1003.62368851,0.00014247,2]
[406693670,1772089756413,-1000.0,0.00014247,2]
[406693671,1772089756460,-1089.39706985,0.00014247,2]
[406693672,1772089756507,-1000.0,0.00014247,2]
[406693673,1772089756554,-1000.0,0.00014247,2]
[406693674,1772089756602,-1000.0,0.00014247,2]
[406693675,1772089756651,-1005.22,0.00014268,2]
[406693676,1772089756699,-151.0,0.00014368,2]
[406693677,1772089756749,-151.0,0.00014368,2]
[406693678,1772089756801,-1500.0,0.00014368,2]
[406693679,1772089756857,-1500.0,0.00014368,2]
[406693680,1772089756905,-1500.0,0.00014368,2]
[406693681,1772089756953,-1500.0,0.00014368,2]
[406693682,1772089757003,-1500.0,0.00014368,2]
[406693683,1772089757052,-320.54504853,0.00014368,2]
[406693684,1772089757101,-1500.0,0.00014368,2]
[406693685,1772089757151,-1500.0,0.00014368,2]
[406693686,1772089757200,-1500.0,0.00014368,2]
[406693687,1772089757252,-1500.0,0.00014368,2]
[406693688,1772089757301,-1680.0,0.00014489,2]
[406693689,1772089757350,-587.0,0.0001465,2]
[406693690,1772089757399,-906.0143271,0.00014699,2]
[406693691,1772089757447,-288.34142436,0.00014795,2]
[406693692,1772089757496,-1023.32209607,0.00014795,2]
[406693693,1772089757544,-1500.0,0.00014795,2]
[406693694,1772089757592,-1500.0,0.00014795,2]
[406693695,1772089757641,-1500.0,0.00014795,2]
[406693696,1772089757688,-435.56272721,0.00014795,2]
[406693697,1772089757735,-304.34070086,0.00014795,2]
[406693698,1772089757782,-515.3681303,0.00014795,2]
[406693699,1772089757834,-1028.82539604,0.00014795,2]
[406693700,1772089757883,-1500.0,0.00014795,2]
[406693701,1772089757936,-1500.0,0.00014795,2]
[406693702,1772089757985,-1500.0,0.00014795,2]
[406693703,1772089758033,-349.0830158,0.00014795,2]
[406693704,1772089758082,-342.91771797,0.00014795,2]
[406693705,1772089758130,-151.0,0.00014916,2]
[406693706,1772089758177,-2000.0,0.00014916,2]
[406693707,1772089758225,-511.89712085,0.00014916,2]
[406693708,1772089758272,-797.05960915,0.00014916,2]
[406693709,1772089758321,-1835.53345579,0.00014916,2]
[406693710,1772089758366,-1075.57483565,0.00014916,2]
[406693711,1772089758412,-1963.15738854,0.00014916,2]
[406693712,1772089758460,-806.52582696,0.00014916,2]
[406693713,1772089758505,-2000.0,0.00014916,2]
[406693714,1772089758551,-2000.0,0.00014916,2]
[406693715,1772089758597,-500.0,0.00014999,2]
[406693716,1772089758643,-450.67,0.00014999,2]
[406693717,1772089758688,-500.0,0.00014999,2]
[406693718,1772089758732,-174.332171,0.00015068,2]
[406693719,1772089758780,-720.0,0.00015187,2]
[406693720,1772089758827,-232.2,0.00015187,3]
[406693721,1772089758874,-696.6,0.00015187,3]
[406693722,1772089758923,-151.0,0.00015342,2]
[406693723,1772089758969,-651.39616762,0.00015342,2]
[406693724,1772089759013,-2000.0,0.00015342,2]
[406693725,1772089759058,-503.33294941,0.00015342,2]
[406693726,1772089759105,-1266.21564162,0.00015342,2]
[406693727,1772089759152,-2000.0,0.00015342,2]
[406693728,1772089759199,-2000.0,0.00015342,2]
[406693729,1772089759249,-307.60743617,0.00015464,2]
[406693730,1772089759299,-2500.0,0.00015464,2]
[406693731,1772089759346,-2500.0,0.00015464,2]
[406693732,1772089759600,-500.0,0.0001589,2]
[406693733,1772089759653,-405.42139715,0.0001589,2]
[406693734,1772089759703,-500.0,0.00015999,2]
[406693735,1772089759752,-500.0,0.00015999,2]
[406693736,1772089759802,-372.0942446,0.00016012,2]
[406693737,1772089759856,-1907.75307812,0.00016012,2]
[406693738,1772089759907,-823.0,0.0001608,2]
[406693739,1772089759964,-250.0,0.00016156,2]
[406693740,1772089760014,-251.2510638,0.00016162,2]
[406693741,1772089760065,-464.4,0.00016557,3]
[406693742,1772089760120,-864.0,0.00016706,2]
[406693743,1772089760173,-1251.70584666,0.0001685,2]
[406693744,1772089760228,-151.0,0.0001699,2]
[406693745,1772089760282,-20292.40093556,0.000173,2]
[406693746,1772089760334,-161.23320849,0.00017617,2]
[406693747,1772089760386,-1152.0,0.0001765,2]
[406693748,1772089760438,-23708.26339336,0.0001799,2]
[406693749,1772089762246,-76291.73660664,0.0001799,2]
[406693750,1772089762265,-67250.1215629,0.00017997,2]
[406693751,1772089762284,-151.0,0.00017997,2]
[406693752,1772089762304,-5500.0,0.00018,2]
[406693753,1772089762326,-11275.24702086,0.00018,2]
[406693754,1772089772577,519.1980688,0.00013261,2]
[406693755,1772089774407,500.0,0.00013261,2]
[406693756,1772089774438,500.0,0.00013261,2]
[406693758,1772089774482,500.0,0.00013261,2]
[406693759,1772089774537,500.0,0.00013261,2]
[406693760,1772089774627,337.85469294,0.00013261,2]
[406693761,1772089774659,500.0,0.00013261,2]
[406693762,1772089774693,500.0,0.00013261,2]
[406693763,1772089774728,500.0,0.00013261,2]
[406693765,1772089774768,500.0,0.00013261,2]
[406693766,1772089778469,161.2332085,0.00017664,2]
[406693768,1772089793382,500.0,0.00013261,2]
[406693769,1772089793413,500.0,0.00013261,2]
[406693770,1772089793454,500.0,0.00013261,2]
[406693771,1772089793511,500.0,0.00013261,2]
[406693772,1772089793545,500.0,0.00013261,2]
[406693773,1772089793569,500.0,0.00013261,2]
[406693774,1772089793598,271.60972543,0.00013261,2]
[406693775,1772089793628,500.0,0.00013261,2]
[406693776,1772089793699,500.0,0.00013261,2]
[406693780,1772089805413,500.0,0.00013699,2]
[406693781,1772089807719,500.91787427,0.00013699,2]
[406693782,1772089807781,501.0020781,0.00013273,2]
[406693783,1772089809495,500.0,0.00013698,2]
[406693784,1772089809525,222.21237416,0.00013698,2]
[406693785,1772089810010,500.0,0.00013698,2]
[406693786,1772089810068,500.0,0.00013273,2]
[406693787,1772089810124,1000.0,0.00013821,2]
[406693788,1772089810180,1500.0,0.00014368,2]
[406693789,1772089810233,2000.0,0.00014916,2]
[406693790,1772089810275,500.0,0.00013698,2]
[406693791,1772089810316,2046.00503798,0.00015464,2]
[406693792,1772089810389,500.0,0.00013698,2]
[406693793,1772089810636,500.0,0.00013698,2]
[406693794,1772089812992,550.91355178,0.00014246,2]
[406693795,1772089818556,500.0,0.00013261,2]
[406693796,1772089818595,500.0,0.00013261,2]
[406693797,1772089818663,500.0,0.00013261,2]
[406693798,1772089818696,331.97599171,0.00013261,2]
[406693799,1772089818719,168.02400829,0.00013261,2]
[406693800,1772089818753,339.36617922,0.00013261,2]
[406693801,1772089818776,160.63382078,0.00013261,2]
[406693802,1772089818861,428.19883456,0.00013261,2]
[406693822,1772089832000,-71.80116544,0.00013261,2]
[406693824,1772089832010,-500.0,0.00013261,2]
[406693826,1772089832019,-500.0,0.00013261,2]
[406693828,1772089832029,-349.45960416,0.00013261,2]
[406693830,1772089832040,-150.54039584,0.00013261,2]
[406693832,1772089832049,-350.44297364,0.00013261,2]
[406693834,1772089832060,-149.55702636,0.00013261,2]
[406693836,1772089832070,-500.0,0.00013261,2]
[406693838,1772089832080,-500.0,0.00013261,2]
[406693840,1772089832089,-392.13005118,0.00013261,2]
[406693842,1772089832098,-500.0,0.00013261,2]
[406693844,1772089832108,-500.0,0.00013261,2]
[406693846,1772089832117,-3117.1288176,0.00017519,2]
[406693848,1772089832126,-69.08750293,0.00018162,2]
[406693952,1772089838134,-215.41737813,0.00018162,2]
[406693953,1772089838144,-265.0,0.00018214,2]
[406693954,1772089838153,-262.445806,0.00018215,2]
[406693955,1772089838163,-207.14090265,0.00018215,2]
[406693956,1772089838172,-533.88981491,0.00018215,2]
[406693957,1772089838182,-2579.17784983,0.00018215,2]
[406693958,1772089838191,-668.65185758,0.00018215,2]
[406693959,1772089838201,-194.72792766,0.00018215,2]
[406693960,1772089838211,-201.93286099,0.00018215,2]
[406693961,1772089838220,-209.40437684,0.00018215,2]
[406693962,1772089838229,-217.15233878,0.00018215,2]
[406693963,1772089838239,-225.18697532,0.00018215,2]
[406693964,1772089838249,-233.51889341,0.00018215,2]
[406693965,1772089838259,-242.15909246,0.00018215,2]
[406693966,1772089838269,-251.11897888,0.00018215,2]
[406693967,1772089838278,-260.4103811,0.00018215,2]
[406693968,1772089838287,-292.86174089,0.00018215,2]
[406693969,1772089838296,-270.0455652,0.00018215,2]
[406693970,1772089838306,-2437.0,0.000183,2]
[406693971,1772089838315,-5625.38690134,0.00018379,2]
[406693972,1772089838324,-500.0,0.00018468,2]
[406693973,1772089838334,-9000.0,0.00018479,2]
[406693974,1772089838344,-9000.0,0.00018479,2]
[406693975,1772089838353,-5275.53708045,0.00018479,2]
[406693976,1772089838362,-500.0,0.00018479,2]
[406693977,1772089838371,-500.0,0.00018479,2]
[406693978,1772089838381,-164.473,0.00018493,2]
[406693979,1772089838390,-300.0,0.00018578,2]
[406693980,1772089838399,-300.0,0.00018578,2]
[406693981,1772089838409,-300.0,0.00018578,2]
[406693982,1772089838418,-300.0,0.00018578,2]
[406693983,1772089838427,-300.0,0.00018578,2]
[406693984,1772089838437,-300.0,0.00018578,2]
[406693985,1772089838446,-300.0,0.00018578,2]
[406693986,1772089838456,-300.0,0.00018578,2]
[406693987,1772089838465,-300.0,0.00018578,2]
[406693988,1772089838475,-300.0,0.00018578,2]
[406693989,1772089838484,-300.0,0.00018578,2]
[406693990,1772089838495,-300.0,0.00018578,2]
[406693991,1772089838504,-300.0,0.00018578,2]
[406693992,1772089838514,-300.0,0.00018578,2]
[406693993,1772089838523,-300.0,0.00018578,2]
[406693994,1772089838532,-600.0,0.00018578,2]
[406693995,1772089838541,-637.0,0.00018581,2]
[406693996,1772089838551,-1386.0,0.00018581,2]
[406693997,1772089838560,-430.0,0.00018581,2]
[406693998,1772089838570,-728.0,0.00018581,2]
[406693999,1772089838579,-744.71502317,0.00018635,2]
[406694000,1772089838588,-2674.60743027,0.00018763,2]
[406694001,1772089838598,-320.0,0.00018984,5]
[406694002,1772089838608,-325.77525749,0.00018989,2]
[406694003,1772089838617,-2837.68209352,0.00018989,2]
[406694004,1772089838626,-334.74238538,0.00018989,2]
[406694005,1772089838636,-382.56272615,0.00018989,2]
[406694006,1772089838645,-372.31457999,0.00018989,2]
[406694007,1772089838655,-500.0,0.00018999,2]
[406694008,1772089838863,-403.0,0.0001904,2]
[406694009,1772089838879,-500.0,0.00019076,2]
[406694010,1772089838889,-470.6,0.00019143,2]
[406694011,1772089838898,-787.09,0.00019178,2]
[406694012,1772089838908,-151.0,0.00019178,2]
[406694013,1772089838918,-246.88278808,0.00019178,2]
[406694014,1772089838928,-151.0,0.00019178,2]
[406694015,1772089838937,-151.0,0.00019178,2]
[406694016,1772089838947,-151.0,0.00019178,2]
[406694017,1772089838957,-151.0,0.00019178,2]
[406694018,1772089838966,-151.0,0.00019178,2]
[406694019,1772089838976,-151.0,0.00019178,2]
[406694020,1772089838985,-151.0,0.00019178,2]
[406694021,1772089838995,-151.0,0.00019178,2]
[406694022,1772089839005,-151.0,0.00019178,2]
[406694023,1772089839014,-151.0,0.00019178,2]
[406694024,1772089839024,-151.0,0.00019178,2]
[406694025,1772089839034,-151.0,0.00019178,2]
[406694026,1772089839045,-151.0,0.00019178,2]
[406694027,1772089839054,-151.0,0.00019178,2]
[406694028,1772089839064,-151.0,0.00019178,2]
[406694029,1772089839073,-151.0,0.00019178,2]
[406694030,1772089839082,-151.0,0.00019178,2]
[406694031,1772089839092,-151.0,0.00019178,2]
[406694032,1772089839101,-222.49008,0.00019178,2]
[406694033,1772089839110,-151.0,0.00019178,2]
[406694034,1772089839120,-151.0,0.00019178,2]
[406694035,1772089839129,-151.0,0.00019178,2]
[406694036,1772089839138,-151.0,0.00019178,2]
[406694037,1772089839147,-151.0,0.00019178,2]
[406694038,1772089839156,-151.0,0.00019178,2]
[406694039,1772089839166,-151.0,0.00019178,2]
[406694040,1772089839175,-151.0,0.00019178,2]
[406694041,1772089839186,-151.0,0.00019178,2]
[406694042,1772089839195,-151.0,0.00019178,2]
[406694043,1772089839208,-151.0,0.00019178,2]
[406694044,1772089839218,-151.0,0.00019178,2]
[406694045,1772089839228,-151.0,0.00019178,2]
[406694046,1772089839237,-151.0,0.00019178,2]
[406694047,1772089839247,-151.0,0.00019178,2]
[406694048,1772089839256,-151.0,0.00019178,2]
[406694049,1772089839266,-259.458581,0.00019178,2]
[406694050,1772089839276,-151.219,0.00019181,2]
[406694051,1772089839285,-150.0,0.00019181,2]
[406694052,1772089839295,-2773.56790519,0.00019311,2]
[406694053,1772089839304,-715.0,0.00019312,2]
[406694054,1772089839313,-166.0,0.0001936,2]
[406694055,1772089839323,-403.0,0.0001936,2]
[406694056,1772089839333,-715.0,0.0001936,2]
[406694057,1772089839342,-715.0,0.0001936,2]
[406694058,1772089839352,-403.0,0.0001936,2]
[406694059,1772089839361,-678.18740328,0.000196,2]
[406694060,1772089839371,-353.12353366,0.00019628,2]
[406694061,1772089839380,-240.03834092,0.00019629,5]
[406694062,1772089839390,-1039.0,0.00019644,5]
[406694063,1772089839400,-5625.38690133,0.0001966,2]
[406694064,1772089839410,-403.0,0.0001968,2]
[406694065,1772089839420,-715.0,0.0001968,2]
[406694066,1772089839429,-403.0,0.0001968,2]
[406694067,1772089839439,-715.0,0.0001968,2]
[406694068,1772089839450,-308.0,0.00019729,2]
[406694069,1772089839459,-500.0,0.00019799,2]
[406694070,1772089839469,-7627.84572334,0.000198,2]
[406694071,1772089839499,-857051.88800744,0.000198,2]
[406694072,1772089839509,-1000.0,0.000198,2]
[406694073,1772089839519,-1000.0,0.000198,3]
[406694074,1772089839529,-1028.09,0.000198,4]
[406694075,1772089839539,-487.0,0.000198,2]
[406694076,1772089839549,-487.0,0.000198,2]
[406694077,1772089839558,-487.0,0.000198,2]
[406694078,1772089839568,-487.0,0.000198,2]
[406694079,1772089839577,-487.0,0.000198,2]
[406694080,1772089839586,-487.0,0.000198,2]
[406694081,1772089839595,-487.0,0.000198,2]
[406694082,1772089839604,-487.0,0.000198,2]
[406694083,1772089839613,-487.0,0.000198,2]
[406694084,1772089839622,-487.0,0.000198,2]
[406694085,1772089839631,-487.0,0.000198,2]
[406694086,1772089839640,-487.0,0.000198,2]
[406694087,1772089839650,-487.0,0.000198,2]
[406694088,1772089839660,-487.0,0.000198,2]
[406694089,1772089839669,-487.0,0.000198,2]
[406694090,1772089839680,-487.0,0.000198,2]
[406694091,1772089839689,-487.0,0.000198,2]
[406694092,1772089839699,-487.0,0.000198,2]
[406694093,1772089839710,-487.0,0.000198,2]
[406694094,1772089839719,-871.23,0.000198,2]
[406694095,1772089839729,-6452.3249612,0.00019838,2]
[406694096,1772089839738,-2876.18991768,0.00019859,2]
[406694097,1772089839748,-470.6,0.00019898,2]
[406694098,1772089839757,-382.0,0.0001992,2]
[406694099,1772089839767,-3060.2864211,0.00019964,2]
[406694100,1772089839777,-1000.0,0.00019967,2]
[406694101,1772089839786,-1000.0,0.00019967,2]
[406694102,1772089839796,-1529.99353691,0.0001997,3]
[406694103,1772089839805,-2830.1780392,0.0001999,2]
[406694104,1772089839815,-500.0,0.00019999,2]
[406694105,1772089839824,-500.0,0.00019999,2]
[406694106,1772089839833,-500.0,0.00019999,2]
[406694107,1772089839847,-500.0,0.00019999,2]
[406694108,1772089839856,-500.0,0.00019999,2]
[406694109,1772089839866,-500.0,0.00019999,2]
[406694110,1772089839876,-500.0,0.00019999,2]
[406694111,1772089839888,-500.0,0.00019999,2]
[406694112,1772089839897,-500.0,0.00019999,2]
[406694113,1772089839906,-500.0,0.00019999,2]
[406694114,1772089839917,-500.0,0.00019999,2]
[406694115,1772089839927,-500.0,0.00019999,2]
[406694116,1772089839937,-584.12109981,0.00019999,2]
[406694117,1772089839947,-1500.0,0.0002,30]
[406694118,1772089839957,-5431.98971393,0.0002,2]
[406694119,1772089839967,-527375.85315239,0.0002,2]
[406694120,1772089839976,-2816.466381,0.0002,2]
[406694121,1772089839987,-6169.77069729,0.0002,20]
[406694122,1772089839997,-90302.33950121,0.0002,2]
[406694124,1772089840010,-1038.28706012,0.0002,2]
[406694125,1772089840021,-921.82491636,0.0002,2]
[406694147,1772089840739,-161.2332085,0.00017664,2]
[406694149,1772089840749,-280.03725112,0.00018215,2]
[406694151,1772089840758,-230.50890873,0.00018215,2]
[406694156,1772089840803,-59.88972068,0.00018215,2]
[406694158,1772089840812,-301.1433787,0.00018215,2]
[406694160,1772089840821,-3563.92772112,0.0002,2]
[406694163,1772089840833,-6423.94677741,0.0002,2]
[406694248,1772089846593,-478.74241238,0.00018215,2]
[406694249,1772089846603,-67.01356462,0.0002,2]
[406694250,1772089846630,-139302.80152929,0.0002,2]
[406694251,1772089846670,-1440.7568321,0.0002,2]
[406694283,1772090271349,400.0,0.00020349,120]
[406694284,1772090286725,405.32,0.00012001,2]
[406694287,1772090756529,-1200.0,0.00013271,2]
[406694288,1772090756561,-1125.14,0.00013272,2]
[406694289,1772090756592,-300.0,0.00013272,2]
[406694290,1772090756624,-300.0,0.00013272,2]
[406694291,1772090756654,-208.0,0.00013272,2]
[406694292,1772090756685,-193.10652966,0.00013272,2]
[406694293,1772090756718,-345.61330068,0.00013273,2]
[406694294,1772090757294,-219.11476477,0.00013273,2]
[406694295,1772090757314,-216.28929297,0.00013273,2]
[406694296,1772090757335,-115.905415,0.00013273,2]
[406694297,1772090830217,-300.0,0.00013272,2]
[406694298,1772090830265,-384.094585,0.00013273,2]
[406694299,1772090830312,-500.0,0.00013273,2]
[406694300,1772090830360,-500.0,0.00013273,2]
[406694301,1772090830409,-500.0,0.00013273,2]
[406694302,1772090830458,-716.87429222,0.00013273,2]
[406694303,1772090841829,-856.27393235,0.00013273,2]
[406694304,1772090848100,-593.73221998,0.00013273,2]
[406694305,1772090848123,-131.75809449,0.00013327,2]
[406694306,1772090952100,-500.0,0.00013273,2]
[406694307,1772090952120,-213.58012358,0.00013327,2]
[406694308,1772090952146,-200.0,0.00013514,2]
[406694309,1772090952167,-500.0,0.00013698,2]
[406694310,1772090952187,-171.72669464,0.00013699,2]
[406694311,1772090952208,-500.0,0.00013699,2]
[406694312,1772090952228,-500.0,0.00013699,2]
[406694313,1772090952249,-150.0,0.000137,2]
[406694314,1772090952270,-300.0,0.0001382,2]
[406694315,1772090952291,-633.68037286,0.00013821,2]
[406694316,1772090952311,-513.3921837,0.00013821,2]
[406694317,1772090952331,-1005.86326619,0.00013821,2]
[406694318,1772090952351,-1000.0,0.00013821,2]
[406694319,1772090952373,-1362.27481208,0.00014175,2]
[406694320,1772090952393,-150.0,0.000142,2]
[406694321,1772090952412,-524.78823161,0.00014247,2]
[406694322,1772090952432,-506.60712384,0.00014247,2]
[406694323,1772090952453,-395.0,0.00014598,2]
[406694324,1772090952473,-201.14,0.000148,2]
[406694325,1772090952493,-413.4291862,0.0001511,2]
[406694326,1772090952513,-420.0,0.00015143,2]
[406694327,1772090952532,-500.0,0.00015214,2]
[406694328,1772090952554,-227.865705,0.00015272,2]
[406694329,1772090952574,-151.0,0.00015811,2]
[406694330,1772090952595,-151.0,0.00015811,2]
[406694331,1772090952617,-738.46611495,0.0001582,2]
[406694332,1772091005865,152.01,9.5e-05,2]
[406694333,1772091007279,417.91745421,0.00013699,2]
[406694334,1772091007337,82.08254579,0.00013699,2]
[406694335,1772091007404,329.51745421,0.00014247,2]
[406694342,1772091032207,-616.04125667,0.00014247,2]
[406694343,1772091032219,-56.56839869,0.00014247,2]
[406694344,1772091032230,-688.8294148,0.0001582,2]
[406694357,1772091038387,-1252.01858434,0.0001582,2]
[406694358,1772091038397,-190.04073079,0.00015917,2]
[406694359,1772091038407,-500.0,0.00016015,2]
[406694360,1772091038416,-150.0,0.00016438,2]
[406694361,1772091038426,-297.10665449,0.00016438,2]